fUSD/lending_fUSD_20250505
["ID","MTS","AMOUNT","RATE_DAILY","PERIOD"]
[359983904,1746462631934,-450.0,0.00019854,2]
[359983906,1746462631944,-450.0,0.00019854,2]
[359983908,1746462631953,-450.0,0.00019854,2]
[359983910,1746462631963,-450.0,0.00019854,2]
[359983912,1746462631973,-450.0,0.00019854,2]
[359983914,1746462631982,-450.0,0.00019854,2]
[359983916,1746462631991,-450.0,0.00019854,2]
[359983918,1746462632000,-471.31850139,0.00019854,2]
[359983920,1746462632009,-450.0,0.00019854,2]
[359983922,1746462632022,-450.0,0.00019854,2]
[359983924,1746462632031,-450.0,0.00019854,2]
[359983926,1746462632040,-450.0,0.00019854,2]
[359983928,1746462632049,-450.0,0.00019854,2]
[359983930,1746462632058,-450.0,0.00019854,2]
[359983932,1746462632068,-735.17,0.00019854,2]
[359983934,1746462632077,-450.0,0.00019854,2]
[359983936,1746462632087,-450.0,0.00019854,2]
[359983938,1746462632096,-450.0,0.00019854,2]
[359983939,1746462632105,-450.0,0.00019854,2]
[359983941,1746462632115,-450.0,0.00019854,2]
[359983943,1746462632124,-16530.53,0.00019854,2]
[359983945,1746462632134,-450.0,0.00019854,2]
[359983947,1746462632144,-450.0,0.00019854,2]
[359983949,1746462632154,-450.0,0.00019854,2]
[359983951,1746462632163,-450.0,0.00019854,2]
[359983953,1746462632172,-450.0,0.00019854,2]
[359983955,1746462632181,-450.0,0.00019854,2]
[359983957,1746462632191,-450.0,0.00019854,2]
[359983959,1746462632200,-450.0,0.00019854,2]
[359983961,1746462632209,-617.04,0.00019854,2]
[359983963,1746462632219,-522.59847802,0.00019854,2]
[359983965,1746462632229,-975.28,0.00019854,2]
[359983967,1746462632238,-450.0,0.00019854,2]
[359983969,1746462632247,-450.0,0.00019854,2]
[359983971,1746462632256,-3846.74,0.00019854,2]
[359983973,1746462632266,-450.53,0.00019854,2]
[359983975,1746462632275,-450.0,0.00019854,2]
[359983977,1746462632284,-450.0,0.00019854,2]
[359983979,1746462632294,-450.0,0.00019854,2]
[359983981,1746462632303,-450.0,0.00019854,2]
[359983983,1746462632312,-450.0,0.00019854,2]
[359983985,1746462632322,-450.0,0.00019854,2]
[359983987,1746462632331,-450.0,0.00019854,2]
[359983989,1746462632340,-450.0,0.00019854,2]
[359983991,1746462632350,-928.84,0.00019854,2]
[359983993,1746462632360,-450.0,0.00019854,2]
[359983995,1746462632370,-860.58,0.00019854,2]
[359983997,1746462632380,-841.72,0.00019854,2]
[359983998,1746462632388,-450.0,0.00019854,2]
[359984000,1746462632398,-450.0,0.00019854,2]
[359984002,1746462632408,-470.0,0.00019854,2]
[359984003,1746462632418,-450.0,0.00019855,2]
[359984004,1746462632428,-450.0,0.00019855,2]
[359984005,1746462632437,-450.0,0.00019855,2]
[359984006,1746462632447,-450.0,0.00019855,2]
[359984007,1746462632457,-150.0,0.00019856,2]
[359984008,1746462632466,-150.0,0.00019869,2]
[359984009,1746462632475,-150.0,0.00019872,2]
[359984010,1746462632485,-167.63522545,0.00019873,2]
[359984011,1746462632494,-160.19803273,0.00019873,2]
[359984012,1746462632504,-500.0,0.00019873,2]
[359984013,1746462632513,-500.0,0.00019873,2]
[359984014,1746462632522,-202.94057394,0.00019879,2]
[359984015,1746462632532,-450.0,0.00019885,2]
[359984016,1746462632541,-450.0,0.00019885,2]
[359984017,1746462632552,-450.0,0.00019885,2]
[359984018,1746462632563,-450.0,0.00019885,2]
[359984019,1746462632576,-450.0,0.00019886,2]
[359984020,1746462632588,-450.0,0.00019886,2]
[359984021,1746462632599,-450.0,0.00019886,2]
[359984022,1746462632608,-316.35,0.00019886,2]
[359984023,1746462632618,-207.4,0.00019888,2]
[359984024,1746462632630,-450.0,0.00019895,2]
[359984025,1746462632641,-450.0,0.00019895,2]
[359984026,1746462632653,-450.0,0.00019895,2]
[359984027,1746462632664,-450.0,0.00019895,2]
[359984028,1746462632675,-443.99,0.00019895,2]
[359984029,1746462632687,-450.0,0.00019895,2]
[359984030,1746462632700,-414.0589024,0.00019895,2]
[359984031,1746462632712,-450.0,0.00019895,2]
[359984032,1746462632723,-450.0,0.00019895,2]
[359984033,1746462632735,-617.04,0.00019895,2]
[359984034,1746462632746,-450.0,0.00019895,2]
[359984035,1746462632756,-450.0,0.00019895,2]
[359984036,1746462632767,-450.0,0.00019895,2]
[359984037,1746462632779,-150.0,0.00019897,2]
[359984038,1746462632792,-500.0,0.00019898,2]
[359984039,1746462632804,-499.11139436,0.00019898,2]
[359984040,1746462632816,-500.0,0.00019898,2]
[359984041,1746462632828,-450.0,0.00019899,2]
[359984042,1746462632840,-475.66972104,0.00019899,2]
[359984043,1746462632854,-450.0,0.00019899,2]
[359984044,1746462632866,-450.0,0.00019899,2]
[359984045,1746462632878,-450.0,0.00019899,2]
[359984046,1746462632889,-450.0,0.00019899,2]
[359984047,1746462632901,-450.0,0.00019899,2]
[359984048,1746462632914,-744.69,0.00019899,2]
[359984049,1746462632926,-450.0,0.00019899,2]
[359984050,1746462632938,-16408.02,0.00019899,2]
[359984051,1746462632950,-450.0,0.00019899,2]
[359984052,1746462632961,-735.17,0.00019899,2]
[359984053,1746462632972,-450.0,0.00019899,2]
[359984054,1746462632983,-1238.96,0.00019899,2]
[359984055,1746462632995,-150.0,0.00019899,2]
[359984056,1746462633008,-450.0,0.00019899,2]
[359984057,1746462633022,-5858.52,0.00019899,2]
[359984058,1746462633034,-417.38,0.00019899,2]
[359984059,1746462633046,-450.0,0.00019899,2]
[359984060,1746462633059,-16530.53,0.00019899,2]
[359984061,1746462633071,-450.0,0.00019899,2]
[359984062,1746462633082,-450.0,0.00019899,2]
[359984063,1746462633094,-450.0,0.00019899,2]
[359984064,1746462633105,-450.0,0.00019899,2]
[359984065,1746462633118,-3383.95,0.00019899,2]
[359984066,1746462633130,-450.0,0.00019899,2]
[359984067,1746462633143,-274.33482507,0.00019899,2]
[359984068,1746462633158,-975.28,0.00019899,2]
[359984069,1746462633170,-450.0,0.00019899,2]
[359984070,1746462633181,-450.0,0.00019899,2]
[359984071,1746462633192,-3846.74,0.00019899,2]
[359984072,1746462633202,-450.0,0.00019899,2]
[359984073,1746462633214,-450.53,0.00019899,2]
[359984074,1746462633225,-450.0,0.00019899,2]
[359984075,1746462633239,-200.0,0.00019899,2]
[359984076,1746462633253,-450.0,0.00019899,2]
[359984077,1746462633266,-450.0,0.00019899,2]
[359984078,1746462633277,-413.49097043,0.00019899,2]
[359984079,1746462633288,-1225.52,0.00019899,2]
[359984080,1746462633299,-450.0,0.00019899,2]
[359984081,1746462633311,-450.0,0.00019899,2]
[359984082,1746462633322,-928.84,0.00019899,2]
[359984083,1746462633333,-328.34,0.00019899,2]
[359984084,1746462633344,-450.0,0.00019899,2]
[359984085,1746462633355,-450.0,0.00019899,2]
[359984086,1746462633366,-860.58,0.00019899,2]
[359984087,1746462633378,-259.39986697,0.00019899,2]
[359984088,1746462633388,-450.0,0.00019899,2]
[359984089,1746462633401,-841.72,0.00019899,2]
[359984090,1746462633414,-450.0,0.00019899,2]
[359984091,1746462633427,-3837.1078986,0.000199,2]
[359984092,1746462633438,-5469.6674063,0.000199,2]
[359984093,1746462633449,-160.84161695,0.000199,2]
[359984094,1746462633460,-29678.54668061,0.000199,2]
[359984095,1746462633471,-369.5212148,0.000199,3]
[359984096,1746462633483,-561.49467204,0.000199,2]
[359984097,1746462633495,-171.04165752,0.000199,2]
[359984098,1746462633506,-202.94057394,0.000199,2]
[359984099,1746462633517,-496.35963847,0.000199,2]
[359984100,1746462633528,-12535.59388348,0.000199,2]
[359984101,1746462633540,-1593.27022938,0.00019902,2]
[359984102,1746462633550,-150.0,0.0001991,2]
[359984103,1746462633562,-150.0,0.00019918,7]
[359984104,1746462633573,-500.0,0.00019918,2]
[359984105,1746462633584,-150.0,0.00019921,2]
[359984106,1746462633596,-569.36184536,0.00019921,2]
[359984107,1746462633608,-505.72372806,0.00019923,2]
[359984108,1746462633619,-593.37,0.00019923,2]
[359984109,1746462633630,-432.02,0.00019923,2]
[359984110,1746462633641,-450.0,0.00019923,2]
[359984111,1746462633653,-450.0,0.00019923,2]
[359984112,1746462633664,-617.04,0.00019923,2]
[359984113,1746462633675,-915.0,0.00019924,2]
[359984114,1746462633687,-582.0,0.00019924,2]
[359984115,1746462633698,-551.0,0.00019924,2]
[359984116,1746462633709,-1452.0,0.00019924,2]
[359984117,1746462633720,-1242.0,0.00019924,2]
[359984118,1746462633732,-1141.0,0.00019924,2]
[359984119,1746462633743,-5931.0,0.00019924,2]
[359984120,1746462633755,-1300.0,0.00019924,2]
[359984121,1746462633766,-4010.0,0.00019924,2]
[359984122,1746462633778,-150.0,0.00019925,2]
[359984123,1746462633790,-150.0,0.00019926,2]
[359984124,1746462633801,-200.0,0.00019926,2]
[359984125,1746462633813,-450.0,0.0001993,2]
[359984126,1746462633825,-450.0,0.0001993,2]
[359984127,1746462633836,-198.0,0.00019934,2]
[359984128,1746462633847,-150.0,0.00019934,2]
[359984129,1746462633860,-218.315,0.00019934,2]
[359984130,1746462633871,-150.022,0.00019934,2]
[359984131,1746462633884,-164.086,0.00019934,2]
[359984132,1746462633896,-150.0,0.00019934,2]
[359984133,1746462633908,-152.128,0.00019934,2]
[359984134,1746462633920,-150.0,0.00019934,2]
[359984135,1746462633932,-150.0,0.00019934,2]
[359984136,1746462633944,-157.055,0.00019934,2]
[359984137,1746462633956,-450.0,0.00019935,2]
[359984138,1746462633967,-666.0,0.00019936,2]
[359984139,1746462633978,-150.0,0.00019936,2]
[359984140,1746462633989,-150.0,0.00019945,2]
[359984141,1746462634001,-150.0,0.00019948,2]
[359984142,1746462634012,-259.65945353,0.00019949,2]
[359984143,1746462634026,-184.98352013,0.00019949,2]
[359984144,1746462634037,-150.0,0.00019949,2]
[359984145,1746462634048,-150.0,0.00019949,2]
[359984146,1746462634064,-907.22520885,0.00019949,2]
[359984147,1746462634076,-264.3532294,0.00019949,2]
[359984148,1746462634089,-500.0,0.0001995,2]
[359984149,1746462634102,-963.0,0.00019951,2]
[359984150,1746462634114,-450.0,0.00019956,2]
[359984151,1746462634126,-500.0,0.00019956,2]
[359984152,1746462634138,-450.0,0.00019956,2]
[359984153,1746462634150,-450.0,0.00019956,2]
[359984154,1746462634163,-450.0,0.00019956,2]
[359984155,1746462634176,-450.0,0.00019956,2]
[359984156,1746462634189,-450.0,0.00019956,2]
[359984157,1746462634201,-450.0,0.00019956,2]
[359984158,1746462634213,-450.0,0.00019956,2]
[359984159,1746462634225,-450.0,0.00019956,2]
[359984160,1746462634236,-1905.56,0.00019956,2]
[359984161,1746462634248,-450.0,0.00019956,2]
[359984162,1746462634260,-1318.06,0.00019971,2]
[359984163,1746462634272,-254.55655609,0.00019971,2]
[359984164,1746462634291,-195.44344391,0.00019971,2]
[359984165,1746462634303,-191.32,0.00019971,2]
[359984166,1746462634315,-450.0,0.00019972,2]
[359984167,1746462634327,-450.0,0.00019972,2]
[359984168,1746462634551,-450.0,0.00019972,2]
[359984169,1746462634561,-450.0,0.00019972,2]
[359984170,1746462634571,-450.0,0.00019972,2]
[359984171,1746462634580,-470.50256753,0.00019972,2]
[359984172,1746462634590,-450.0,0.00019972,2]
[359984173,1746462634599,-450.0,0.00019972,2]
[359984174,1746462634609,-450.0,0.00019972,2]
[359984175,1746462634619,-489.62464043,0.00019972,2]
[359984176,1746462634628,-465.67882228,0.00019972,2]
[359984177,1746462634638,-450.0,0.00019972,2]
[359984178,1746462634647,-450.0,0.00019972,2]
[359984179,1746462634657,-450.0,0.00019972,2]
[359984180,1746462634666,-1005.87,0.00019972,2]
[359984181,1746462634675,-596.95399614,0.00019972,2]
[359984182,1746462634685,-460.90549166,0.00019972,2]
[359984183,1746462634695,-450.0,0.00019972,2]
[359984184,1746462634704,-520.56,0.00019972,2]
[359984185,1746462634714,-450.0,0.00019972,2]
[359984186,1746462634723,-384.36,0.00019972,2]
[359984187,1746462634732,-450.0,0.00019972,2]
[359984188,1746462634742,-450.0,0.00019972,2]
[359984189,1746462634752,-450.0,0.00019972,2]
[359984190,1746462634761,-450.0,0.00019972,2]
[359984191,1746462634771,-450.0,0.00019972,2]
[359984192,1746462634780,-744.69,0.00019972,2]
[359984193,1746462634790,-16408.02,0.00019972,2]
[359984194,1746462634799,-450.0,0.00019972,2]
[359984195,1746462634808,-735.17,0.00019972,2]
[359984196,1746462634818,-334.41,0.00019972,2]
[359984197,1746462634827,-1238.96,0.00019972,2]
[359984198,1746462634836,-450.0,0.00019972,2]
[359984199,1746462634846,-5858.52,0.00019972,2]
[359984200,1746462634855,-450.0,0.00019972,2]
[359984201,1746462634865,-16530.53,0.00019972,2]
[359984202,1746462634874,-450.0,0.00019972,2]
[359984203,1746462634885,-450.0,0.00019972,2]
[359984204,1746462634894,-450.0,0.00019972,2]
[359984205,1746462634904,-196.31991402,0.00019972,2]
[359984206,1746462634917,-599.7235162,0.00019972,2]
[359984207,1746462634928,-298.08372487,0.00019972,2]
[359984208,1746462634940,-749.2210027,0.00019972,2]
[359984209,1746462634952,-284.72366049,0.00019972,2]
[359984210,1746462634967,-302.0,0.00019972,2]
[359984211,1746462634978,-765.950844,0.00019972,2]
[359984212,1746462634996,-187.92733772,0.00019972,2]
[359984213,1746462635005,-450.0,0.00019972,2]
[359984214,1746462635016,-975.28,0.00019972,2]
[359984215,1746462635027,-450.0,0.00019972,2]
[359984216,1746462635036,-3639.53266228,0.00019972,2]
[359984219,1746462637516,-207.20733772,0.00019972,2]
[359984220,1746462637526,-361.11991011,0.00019972,2]
[359984221,1746462637538,-89.41008989,0.00019972,2]
[359984222,1746462637547,-450.0,0.00019972,2]
[359984223,1746462637557,-450.0,0.00019972,2]
[359984224,1746462637566,-450.0,0.00019972,2]
[359984225,1746462637576,-269.3362135,0.00019972,2]
[359984226,1746462637585,-22.41369661,0.00019972,2]
[359984227,1746462637597,-427.58630339,0.00019972,2]
[359984228,1746462637607,-928.84,0.00019972,2]
[359984229,1746462637616,-463.7490812,0.00019972,2]
[359984230,1746462637626,-860.58,0.00019972,2]
[359984231,1746462637635,-450.0,0.00019972,2]
[359984232,1746462637644,-841.72,0.00019972,2]
[359984233,1746462637654,-450.0,0.00019972,2]
[359984234,1746462637664,-303.70750864,0.00019973,2]
[359984235,1746462637673,-3206.0,0.00019973,2]
[359984236,1746462637682,-1171.0,0.00019973,2]
[359984237,1746462637690,-72.98447445,0.00019973,2]
[359984238,1746462637702,-277.595,0.00019973,2]
[359984239,1746462637712,-149.42052555,0.00019973,2]
[359984240,1746462637722,-500.0,0.00019973,2]
[359984242,1746462637731,-500.0,0.00019973,2]
[359984244,1746462637741,-136.06653103,0.00019973,2]
[359984246,1746462637752,-363.93346897,0.00019973,2]
[359984248,1746462637761,-545.16915737,0.00019973,2]
[359984250,1746462637770,-46.89737366,0.00019973,2]
[359984252,1746462637782,-560.3493445,0.00019973,2]
[359984254,1746462637791,-485.0,0.00019973,2]
[359984256,1746462637800,-500.0,0.00019973,2]
[359984258,1746462637809,-18.11664038,0.00019973,2]
[359984261,1746462637826,-1269.25,0.000199,2]
[359984263,1746462637838,-337.34587781,0.000199,2]
[359984265,1746462637849,-179.84384456,0.000199,2]
[359984267,1746462637859,-404.94130273,0.00019973,2]
[359984270,1746462637870,-76.94205689,0.00019973,2]
[359984272,1746462637881,-500.0,0.00019973,2]
[359984275,1746462637891,-318.95294309,0.00019973,2]
[359984300,1746462638736,249.66304135,0.0003,30]
[359984305,1746462639529,-878.0,0.00019924,2]
[359984306,1746462639538,-181.04705691,0.00019973,2]
[359984307,1746462639548,-320.46954599,0.00019973,2]
[359984308,1746462639557,-500.0,0.00019973,2]
[359984309,1746462639567,-500.0,0.00019973,2]
[359984310,1746462639576,-505.92257895,0.00019973,2]
[359984311,1746462639585,-392.33839899,0.00019973,2]
[359984312,1746462639595,-500.0,0.00019973,2]
[359984313,1746462639604,-500.69231875,0.00019973,2]
[359984314,1746462639613,-582.04720083,0.00019973,2]
[359984315,1746462639622,-223.54304339,0.00019973,2]
[359984316,1746462639631,-152.69879397,0.00019973,2]
[359984317,1746462639641,-500.0,0.00019973,2]
[359984318,1746462639650,-500.86321128,0.00019973,2]
[359984319,1746462639659,-500.0,0.00019973,2]
[359984320,1746462639669,-500.0,0.00019973,2]
[359984321,1746462639678,-500.0,0.00019973,2]
[359984322,1746462639688,-500.0,0.00019973,2]
[359984323,1746462639697,-450.0,0.00019975,2]
[359984324,1746462639706,-593.37,0.00019976,2]
[359984325,1746462639715,-450.0,0.00019976,2]
[359984326,1746462639726,-450.0,0.00019976,2]
[359984327,1746462639734,-450.0,0.00019976,2]
[359984328,1746462639744,-617.04,0.00019976,2]
[359984329,1746462639753,-450.0,0.00019976,2]
[359984330,1746462639763,-450.0,0.00019976,2]
[359984331,1746462639772,-538.7480729,0.00019978,2]
[359984332,1746462639781,-450.0,0.00019978,2]
[359984333,1746462639791,-450.0,0.00019978,2]
[359984334,1746462639800,-450.0,0.00019978,2]
[359984335,1746462639809,-450.0,0.00019978,2]
[359984336,1746462639818,-450.0,0.00019978,2]
[359984337,1746462639828,-1316.0,0.00019979,2]
[359984338,1746462639837,-208.89,0.00019979,2]
[359984339,1746462639846,-450.0,0.00019979,2]
[359984340,1746462639855,-450.0,0.00019979,2]
[359984341,1746462639865,-450.0,0.00019979,2]
[359984342,1746462639874,-450.0,0.00019979,2]
[359984343,1746462639884,-451.84390647,0.00019979,2]
[359984344,1746462639894,-450.0,0.00019979,2]
[359984345,1746462639904,-1005.87,0.00019979,2]
[359984346,1746462639913,-167.11998014,0.00019979,2]
[359984347,1746462639923,-500.0,0.00019979,2]
[359984348,1746462639933,-500.0,0.00019979,2]
[359984349,1746462639942,-426.08921556,0.00019979,2]
[359984350,1746462639952,-500.0,0.00019979,2]
[359984351,1746462639961,-500.0,0.00019979,2]
[359984352,1746462639974,-500.0,0.00019979,2]
[359984353,1746462639984,-500.0,0.00019979,2]
[359984354,1746462639993,-744.69,0.00019979,2]
[359984355,1746462640003,-16408.02,0.00019979,2]
[359984356,1746462640014,-450.0,0.00019979,2]
[359984357,1746462640024,-735.17,0.00019979,2]
[359984358,1746462640034,-1238.96,0.00019979,2]
[359984359,1746462640044,-205.75168017,0.00019979,2]
[359984360,1746462640053,-5858.52,0.00019979,2]
[359984362,1746462640064,-450.0,0.00019979,2]
[359984363,1746462640073,-16530.53,0.00019979,2]
[359984365,1746462640083,-450.0,0.00019979,2]
[359984367,1746462640094,-450.0,0.00019979,2]
[359984369,1746462640104,-450.0,0.00019979,2]
[359984371,1746462640113,-3383.95,0.00019979,2]
[359984373,1746462640122,-202.31,0.00019979,2]
[359984374,1746462640131,-500.0,0.00019979,2]
[359984376,1746462640141,-975.28,0.00019979,2]
[359984378,1746462640150,-450.0,0.00019979,2]
[359984380,1746462640161,-450.0,0.00019979,2]
[359984383,1746462640171,-450.0,0.00019979,2]
[359984384,1746462640181,-3846.74,0.00019979,2]
[359984386,1746462640190,-450.53,0.00019979,2]
[359984389,1746462640200,-450.0,0.00019979,2]
[359984390,1746462640209,-450.0,0.00019979,2]
[359984392,1746462640219,-450.0,0.00019979,2]
[359984395,1746462640228,-450.0,0.00019979,2]
[359984396,1746462640238,-450.0,0.00019979,2]
[359984399,1746462640247,-450.0,0.00019979,2]
[359984401,1746462640258,-1225.52,0.00019979,2]
[359984402,1746462640267,-1318.06,0.00019979,2]
[359984405,1746462640277,-450.0,0.00019979,2]
[359984407,1746462640287,-553.16459448,0.00019979,2]
[359984409,1746462640297,-928.84,0.00019979,2]
[359984411,1746462640307,-450.0,0.00019979,2]
[359984413,1746462640317,-1905.56,0.00019979,2]
[359984415,1746462640326,-860.58,0.00019979,2]
[359984417,1746462640336,-450.0,0.00019979,2]
[359984419,1746462640345,-841.72,0.00019979,2]
[359984421,1746462640354,-450.0,0.00019979,2]
[359984423,1746462640363,-450.0,0.00019979,2]
[359984424,1746462640373,-450.0,0.00019979,2]
[359984427,1746462640383,-81046.30963902,0.0001998,2]
[359984429,1746462640392,-20274.53217782,0.0001998,2]
[359984431,1746462640402,-593.37,0.00019981,2]
[359984433,1746462640412,-450.0,0.00019981,2]
[359984435,1746462640422,-450.0,0.00019981,2]
[359984437,1746462640432,-450.0,0.00019981,2]
[359984439,1746462640441,-617.04,0.00019981,2]
[359984440,1746462640451,-450.0,0.00019981,2]
[359984442,1746462640460,-528.55,0.00019981,2]
[359984443,1746462640470,-593.37,0.00019982,2]
[359984444,1746462640479,-450.0,0.00019982,2]
[359984445,1746462640489,-1005.87,0.00019982,2]
[359984446,1746462640499,-450.0,0.00019982,2]
[359984447,1746462640508,-450.0,0.00019982,2]
[359984448,1746462640518,-450.0,0.00019982,2]
[359984449,1746462640527,-450.0,0.00019982,2]
[359984450,1746462640537,-450.0,0.00019982,2]
[359984451,1746462640546,-450.0,0.00019982,2]
[359984452,1746462640555,-450.0,0.00019982,2]
[359984453,1746462640565,-450.0,0.00019982,2]
[359984454,1746462640574,-450.0,0.00019982,2]
[359984455,1746462640583,-744.69,0.00019982,2]
[359984456,1746462640592,-16408.02,0.00019982,2]
[359984457,1746462640602,-450.0,0.00019982,2]
[359984458,1746462640611,-735.17,0.00019982,2]
[359984459,1746462640620,-1238.96,0.00019982,2]
[359984460,1746462640629,-5858.52,0.00019982,2]
[359984461,1746462640639,-450.0,0.00019982,2]
[359984462,1746462640648,-16530.53,0.00019982,2]
[359984463,1746462640658,-450.0,0.00019982,2]
[359984464,1746462640667,-450.0,0.00019982,2]
[359984465,1746462640676,-450.0,0.00019982,2]
[359984466,1746462640685,-3383.95,0.00019982,2]
[359984467,1746462640694,-396.84,0.00019982,2]
[359984468,1746462640704,-617.04,0.00019982,2]
[359984469,1746462640713,-975.28,0.00019982,2]
[359984470,1746462640722,-450.0,0.00019982,2]
[359984471,1746462640731,-3846.74,0.00019982,2]
[359984472,1746462640740,-450.53,0.00019982,2]
[359984473,1746462640749,-450.0,0.00019982,2]
[359984474,1746462640758,-450.0,0.00019982,2]
[359984475,1746462640767,-335.637258,0.00019982,2]
[359984476,1746462640776,-450.0,0.00019982,2]
[359984477,1746462640786,-928.84,0.00019982,2]
[359984478,1746462640795,-860.58,0.00019982,2]
[359984479,1746462640804,-450.0,0.00019982,2]
[359984480,1746462640813,-841.72,0.00019982,2]
[359984481,1746462640822,-450.0,0.00019982,2]
[359984482,1746462640831,-450.0,0.00019983,2]
[359984483,1746462640841,-450.0,0.00019983,2]
[359984484,1746462640850,-450.0,0.00019983,2]
[359984485,1746462640859,-450.0,0.00019983,2]
[359984486,1746462640868,-1005.87,0.00019983,2]
[359984487,1746462640877,-450.0,0.00019983,2]
[359984488,1746462640888,-450.0,0.00019983,2]
[359984489,1746462640898,-450.0,0.00019983,2]
[359984490,1746462640908,-450.0,0.00019983,2]
[359984491,1746462640917,-212.48,0.00019983,2]
[359984492,1746462640927,-744.69,0.00019983,2]
[359984493,1746462640936,-14208.20858952,0.00019983,2]
[359984494,1746462640949,-2199.81141048,0.00019983,2]
[359984495,1746462640959,-1238.96,0.00019983,2]
[359984496,1746462640968,-5858.52,0.00019983,2]
[359984497,1746462640977,-450.0,0.00019983,2]
[359984498,1746462640987,-423.46599367,0.00019983,2]
[359984499,1746462640996,-450.0,0.00019983,2]
[359984500,1746462641007,-3383.95,0.00019983,2]
[359984501,1746462641017,-450.0,0.00019983,2]
[359984502,1746462641163,-450.0,0.00019983,2]
[359984503,1746462641172,-450.0,0.00019984,2]
[359984504,1746462641182,-450.0,0.00019987,2]
[359984505,1746462641192,-450.0,0.00019987,2]
[359984506,1746462641202,-4304.23493,0.00019988,2]
[359984507,1746462641211,-226.54749,0.00019988,2]
[359984508,1746462641221,-613.230198,0.00019988,2]
[359984509,1746462641230,-23729.342279,0.00019988,2]
[359984510,1746462641240,-325.751762,0.00019988,2]
[359984511,1746462641249,-7717.875436,0.00019988,2]
[359984512,1746462641259,-187.07347,0.00019988,2]
[359984513,1746462641268,-450.0,0.00019988,2]
[359984514,1746462641278,-1225.52,0.00019988,2]
[359984515,1746462641287,-4304.23493,0.00019989,2]
[359984516,1746462641297,-226.54749,0.00019989,2]
[359984517,1746462641307,-613.230198,0.00019989,2]
[359984518,1746462641317,-23729.342279,0.00019989,2]
[359984519,1746462641326,-187.07347,0.00019989,2]
[359984520,1746462641336,-325.751762,0.00019989,2]
[359984521,1746462641345,-7717.875436,0.00019989,2]
[359984522,1746462641354,-187.07347,0.00019989,2]
[359984523,1746462641363,-1318.06,0.00019989,2]
[359984524,1746462641372,-291.66,0.00019989,2]
[359984525,1746462641381,-10500.0,0.0001999,3]
[359984526,1746462641391,-150.0,0.00019991,2]
[359984527,1746462641400,-500.0,0.00019994,2]
[359984528,1746462641409,-450.0,0.00019994,2]
[359984529,1746462641419,-450.0,0.00019994,2]
[359984530,1746462641428,-450.0,0.00019994,2]
[359984531,1746462641437,-450.0,0.00019994,2]
[359984532,1746462641447,-1905.56,0.00019994,2]
[359984533,1746462641456,-590.8134705,0.00019995,2]
[359984534,1746462641465,-450.0,0.00019995,2]
[359984535,1746462641474,-735.17,0.00019995,2]
[359984536,1746462641484,-16530.53,0.00019995,2]
[359984537,1746462641493,-450.0,0.00019995,2]
[359984538,1746462641503,-975.28,0.00019995,2]
[359984539,1746462641512,-3846.74,0.00019995,2]
[359984540,1746462641522,-450.53,0.00019995,2]